Cogmind - Beta 15 @@@ ROGUE MODE // 2025.08.04 @ 12:38:35 Player: winnking222 Result: Destroyed by H-77 Assassin with High-powered Shotgun Performance ------------- Evolutions (7) 3500 Regions Visited (19) 3800 Robots Destroyed (209) 1045 Value Destroyed (9245) 9245 Prototype IDs (59) 1180 Alien Tech Used (1) 200 Bonus (8762) 8762 TOTAL SCORE: 27732 Bonus ------- Triggered Max Security 1000 High Alert Combat Kills 1515 Follower Combat Kills 2133 Entered DSFs 500 Aligned with FarCom 300 Met Zhirov 300 Built Enhanced Grunts 300 Met R17 at Cetus 500 Scanned by Researcher 500 Acquired SGEMP 2000 Friendly Fire -286 Cogmind --------- Core Integrity 0/1300 Matter 92/300 Energy 100/100 System Corruption 8% Temperature Cool (4) Movement Core (50) Location -3/Testing Parts ------- > --- POWER (2) -------- (None) > --- PROPULSION (4) --- (None) > --- UTILITY (12) ----- Advanced Targeting Computer Core Analyzer > --- WEAPON (3) ------- (None) > --- INVENTORY (5) ---- Advanced Particle Charger Perforator SGEMP Prototype Peak State ------------ > --- POWER ------------ Particle Reactor Light Particle Reactor > --- PROPULSION ------- Biometal Leg Myomer Exoskeleton > --- UTILITY ---------- Advanced Heat Sink Advanced Cooling System Advanced Cooling System Medium Storage Unit 0b10 Decoder Chip [Looter] Advanced Targeting Computer Advanced Targeting Computer Core Analyzer Advanced Transmission Jammer Centrium Medium Armor Plating Centrium Medium Armor Plating System Mapper > --- WEAPON ----------- Perforator Advanced Micro-nuke Launcher > --- INVENTORY -------- Neutrino Core Armored Heavy Treads Advanced Myomer Leg Advanced Myomer Leg Advanced Myomer Leg Advanced Particle Charger Advanced Variable Charge Gun Railgun Helical Railgun [Rating: 172] Favorites ----------- Power Particle Reactor Engine Light Angular Momentum Engine Power Core Light Fission Core Reactor Particle Reactor Propulsion Light Treads Treads Light Treads Leg Advanced Myomer Leg Wheel Wheel Hover Unit Gravmag Array Utility Advanced Targeting Computer Device Advanced Heat Sink Storage Lightpack 2.0 Processor Advanced Targeting Computer Hackware Improved Hacking Suite Protection Centrium Medium Armor Plating Weapon Advanced KE Penetrator Energy Gun Advanced Variable Charge Gun Energy Cannon Cooled Particle Cannon Ballistic Gun Advanced KE Penetrator Ballistic Cannon Magnetic Acceleration Cannon Launcher Grenade Launcher Build | -11 -10 -10 -10 -9 -8 -7 -7 -6 -5 -5 -5 -5 -4 -4 -4 -4 -3 -3 -3 ------- Run | Yrd Mat Min Exi Min Mat Fac DSF Fac Fac Ext Cet Arc Fac Upp Upp Zhi Pro Res Tes Slots Evolved 14 | . . . . . 4 2 . 2 2 . . . 2 . . . . 2 . Power 1 | . . . . . . . . 1 . . . . . . . . . . . Propulsion 2 | . . . . . 2 . . . . . . . . . . . . . . Utility 10 | . . . . . 2 2 . 1 2 . . . 1 . . . . 2 . Weapon 1 | . . . . . . . . . . . . . 1 . . . . . . Parts Attached 190 | 7 3 2 . . 15 2 7 15 19 34 14 10 25 2 11 4 3 13 4 Power 28 | 1 1 . . . 1 . . 2 2 7 3 4 1 1 1 1 . 3 . Engine 8 | 1 1 . . . . . . 1 1 4 . . . . . . . . . Core 8 | . . . . . 1 . . 1 1 3 . . . . 1 . . 1 . Reactor 12 | . . . . . . . . . . . 3 4 1 1 . 1 . 2 . Propulsion 45 | 2 . . . . 7 . 4 2 5 7 2 . 9 1 1 3 . 1 1 Treads 11 | 2 . . . . . . . . . 7 2 . . . . . . . . Leg 24 | . . . . . 6 . 2 . . . . . 9 1 1 3 . 1 1 Wheel 1 | . . . . . 1 . . . . . . . . . . . . . . Hover 9 | . . . . . . . 2 2 5 . . . . . . . . . . Flight . | . . . . . . . . . . . . . . . . . . . . Utility 65 | 2 2 . . . 3 2 1 5 7 11 5 2 10 . 6 . 2 6 1 Device 24 | 1 . . . . . 1 . . 4 3 2 . 5 . 3 . 1 4 . Storage 6 | 1 2 . . . 1 . . . . . . . 1 . . . . 1 . Processor 9 | . . . . . . 1 . 1 2 2 . . . . 1 . 1 1 . Hackware 5 | . . . . . . . . 2 1 . . . 1 . . . . . 1 Protection 21 | . . . . . 2 . 1 2 . 6 3 2 3 . 2 . . . . Artifact . | . . . . . . . . . . . . . . . . . . . . Weapon 52 | 2 . 2 . . 4 . 2 6 5 9 4 4 5 . 3 . 1 3 2 Energy Gun 17 | . . . . . 2 . . 3 2 1 2 2 3 . . . 1 . 1 Energy Cannon 9 | . . 1 . . . . . 2 2 3 . . 1 . . . . . . Ballistic Gun 18 | 2 . . . . 1 . 2 1 1 4 1 2 1 . 1 . . 2 . Ballistic Cannon 4 | . . . . . . . . . . 1 1 . . . 1 . . . 1 Launcher 4 | . . 1 . . 1 . . . . . . . . . 1 . . 1 . Special Weapon . | . . . . . . . . . . . . . . . . . . . . Impact Weapon . | . . . . . . . . . . . . . . . . . . . . Slashing Weapon . | . . . . . . . . . . . . . . . . . . . . Piercing Weapon . | . . . . . . . . . . . . . . . . . . . . Special Melee Weapon . | . . . . . . . . . . . . . . . . . . . . Unidentified Prototypes 22 | . . . . . 1 . . 5 . . 4 . 3 . . 3 . 2 4 Corrupted Parts 9 | . . . . . . . . . . . 1 7 . . . . 1 . . System Corruption 44 | . . . . . . . . . . . 10 32 . . . . 2 . . Parts Lost 58 | . 1 . . 2 1 . 5 1 9 8 4 . 2 3 12 . 1 . 9 Power 12 | . 1 . . . 1 . . 1 2 1 1 . . 2 1 . . . 2 Propulsion 13 | . . . . 1 . . 3 . 2 2 1 . 1 1 1 . . . 1 Utility 25 | . . . . 1 . . 2 . 5 3 2 . 1 . 5 . 1 . 5 Weapon 8 | . . . . . . . . . . 2 . . . . 5 . . . 1 Highest Loss Streak 9 | . 1 . . 2 1 . 5 1 3 4 2 . 1 1 8 . 1 . 9 To Critical Strikes 1 | . . . . . . . . . . . 1 . . . . . . . . Average Backups 20 | 3 10 12 13 13 13 15 14 25 27 25 28 31 29 31 18 5 4 4 7 Power 1 | . 1 1 1 1 1 1 1 3 2 1 3 3 1 1 1 . . . . Propulsion 6 | 2 3 4 4 4 4 5 5 8 8 9 10 9 7 9 5 2 2 2 3 Utility 5 | . 3 4 5 6 4 4 3 5 7 4 4 7 9 10 7 1 . . 1 Weapon 6 | . 2 3 3 2 3 4 3 7 9 9 10 10 10 10 5 2 2 1 2 Tool/Special . | . . . . . . . . . . . . . . . . . . . . Unused Backups 62 | . 1 . 1 . 2 . 3 7 6 9 8 2 8 1 7 1 1 2 3 Power 7 | . 1 . . . . . . . 1 2 . 1 . . 1 . . . 1 Propulsion 22 | . . . . . 1 . 1 1 2 2 2 1 6 . 2 1 . 1 2 Utility 15 | . . . . . 1 . 2 3 1 2 1 . 1 1 2 . . 1 . Weapon 17 | . . . 1 . . . . 3 2 3 5 . 1 . 1 . 1 . . Tool/Special 1 | . . . . . . . . . . . . . . . 1 . . . . Average Slot Usage (%) 83 | . 98 100 100 97 77 72 71 66 76 77 76 75 81 87 80 97 99 99 82 Engine 4 | . 12 14 14 14 5 . . 2 7 6 . . . . . . . . . Core 2 | . . . . . 3 7 7 7 2 4 1 . . . 2 . . . . Reactor 3 | . . . . . . . . . . . 7 11 9 8 5 10 10 8 7 Treads 9 | . 28 28 28 26 . . . . . 13 13 11 6 . . . . . . Leg 7 | . . . . . 31 30 19 . . . . . 7 20 20 21 21 18 11 Hover 1 | . . . . . . . 4 13 14 . . . . . . . . . . Device 10 | . 14 14 14 12 . 1 3 . 8 11 11 11 10 10 6 21 21 22 17 Storage 6 | . 14 14 14 14 9 7 7 6 5 5 5 5 5 5 2 . . . 3 Processor 9 | . . . . . . 1 7 6 8 11 11 11 10 10 14 15 15 19 18 Hackware 2 | . . . . . . . . 9 8 . . . 4 5 5 5 5 4 3 Protection 7 | . . . . . 8 7 7 9 4 9 10 10 9 10 9 8 9 8 7 Energy Gun 3 | . . . . . 10 15 8 . 4 2 7 10 6 . 2 10 9 4 3 Energy Cannon 1 | . . . . . . . . . 4 5 . . . . . . . 2 . Ballistic Gun 7 | . 28 26 14 14 5 . 4 6 . 2 . . 8 15 8 5 4 6 1 Launcher 1 | . . 1 14 14 1 . . . . . . . . . . . . . . Peak Build Rating 172 | 7 8 8 11 11 54 59 74 95 112 117 145 150 166 156 145 126 126 144 172 Average Rating 99 | 5 7 8 9 10 49 55 60 85 106 113 129 144 156 148 117 121 124 138 150 On Entrance 81 | . 7 8 8 11 9 54 59 74 90 91 112 143 149 156 141 125 126 118 140 Naked Turns . | . . . . . . . . . . . . . . . . . . . . Heaviest Build 91 | 13 48 31 31 31 24 26 28 40 45 63 67 69 83 74 71 71 68 79 91 Greatest Support 150 | 40 40 40 40 40 52 52 59 40 43 140 150 150 150 98 98 106 106 118 128 Greatest Overweight (x) 1 | . 1 . . 1 1 . . 1 1 . . . . . . . . . . Average Overweight (x) . | . . . . . . . . . . . . . . . . . . . . Largest Inventory Capacity 40 | 8 20 15 15 15 40 40 40 40 40 40 40 40 40 40 40 5 5 10 10 Average Capacity 30 | 7 17 15 15 15 40 40 40 40 40 40 40 40 40 40 23 5 5 5 9 Most Carried 38 | 5 12 14 15 15 16 17 26 32 34 37 38 34 36 35 36 5 5 8 10 Average Carried 22 | 3 10 12 13 15 13 15 15 29 30 28 29 31 29 33 20 4 4 5 8 Final Capacity 40 | 8 15 15 15 15 40 40 40 40 40 40 40 40 40 40 5 5 5 10 5 Final Carried 37 | 4 12 14 15 15 15 15 26 30 33 37 30 33 35 34 5 5 5 7 5 Class Distribution -------------------- 45% | Hauler-Mutant 24% | Scavenger-Gunner 18% | Mutant 7% | Scavenger-Tank 3% | Scavenger-Mutant Dominant Class ---------------- Mutant | -10/Materials Mutant | -10/Mines Mutant | -10/Exiles Mutant | -9/Mines Hauler-Mutant | -8/Materials Hauler-Mutant | -7/Factory Hauler-Mutant | -7/DSF Hauler-Mutant | -6/Factory Hauler-Mutant | -5/Factory Hauler-Mutant | -5/Extension Hauler-Mutant | -5/Cetus Hauler-Mutant | -5/Archives Scavenger-Tank | -4/Factory Scavenger-Gunner | -4/Upper Caves Scavenger-Gunner | -4/Upper Caves Scavenger-Gunner | -4/Zhirov Scavenger-Gunner | -3/Proximity Caves Scavenger-Gunner | -3/Research Scavenger-Gunner | -3/Testing Resources | -11 -10 -10 -10 -9 -8 -7 -7 -6 -5 -5 -5 -5 -4 -4 -4 -4 -3 -3 -3 ----------- Run | Yrd Mat Min Exi Min Mat Fac DSF Fac Fac Ext Cet Arc Fac Upp Upp Zhi Pro Res Tes Matter Collected 6239 | 408 135 84 102 89 30 . 231 455 335 1175 431 63 1341 449 436 62 190 198 25 Remotely . | . . . . . . . . . . . . . . . . . . . . Salvage Created 11291 | 196 254 162 . 156 30 . 211 454 1418 2996 179 105 2345 879 718 245 242 409 292 Parts 546 | 22 12 12 . 13 7 . 7 21 73 139 5 6 117 35 37 . 12 21 7 Haulers Intercepted 4 | . 1 . . . . . . 2 1 . . . . . . . . . . Recyclers Shooed 10 | . . . . . . . . 3 4 1 . . 2 . . . . . . Parts Field Recycled . | . . . . . . . . . . . . . . . . . . . . Retrieved Matter . | . . . . . . . . . . . . . . . . . . . . Parts Self-Destructed 77 | . . . . . . . . . . . . . . 31 35 . 11 . . Prevented 6 | . . . . . . . . . . . . . . 2 . . 4 . . Kills | -11 -10 -10 -10 -9 -8 -7 -7 -6 -5 -5 -5 -5 -4 -4 -4 -4 -3 -3 -3 ------- Run | Yrd Mat Min Exi Min Mat Fac DSF Fac Fac Ext Cet Arc Fac Upp Upp Zhi Pro Res Tes Combat Hostiles Destroyed 157 | . 4 7 . 7 . . 3 5 16 37 2 1 30 12 21 . 3 5 4 Guns 113 | . 4 7 . 1 . . 3 5 8 14 1 . 30 12 21 . 3 3 1 Cannons 30 | . . . . . . . . . 5 20 . . . . . . . 2 3 AOE 6 | . . . . 6 . . . . . . . . . . . . . . . Classes Destroyed 18 | 2 3 1 . 2 1 . 3 2 2 1 . . . 1 . . . . . Worker 7 | 1 . . . . . . . . 3 . . . 2 . . . . 1 . Builder 11 | . . . . 1 1 . . 2 . 5 . . 2 . . . . . . Tunneler 11 | 9 . . . 1 . . . . . . . . 1 . . . . . . Hauler 4 | . 1 . . . . . . 2 1 . . . . . . . . . . Recycler 8 | . . . . . . . . . 2 3 . . 3 . . . . . . Operator 4 | . . . . . 1 . . 1 . 1 . . 1 . . . . . . Watcher 6 | . 1 . . . . . . . 2 1 2 . . . . . . . . Swarmer 36 | . . 5 . 3 . . . 3 4 . . . 4 . 17 . . . . Grunt 64 | . 4 2 . 3 . . . . 5 17 1 . 13 10 2 . . 4 3 Brawler 2 | . . . . . . . . . 1 . . . 1 . . . . . . Duelist 6 | . . . . 1 . . . . . 1 . . 2 . 1 . . . 1 Sentry 15 | . . . . . . . . 1 . 9 . 1 2 . 1 . . 1 . Specialist 1 | . . . . . . . 1 . . . . . . . . . . . . Hunter 15 | . . . . . . . 1 . 3 8 . . 3 . . . . . . Programmer 12 | . . . . . . . . 1 3 1 . . 4 1 . . 2 . . Heavy 2 | . . . . . . . 1 . . . . . 1 . . . . . . Behemoth 2 | . . . . . . . . . . 1 . . . . . . 1 . . Cetus Guard 1 | . . . . . . . . . . . 1 . . . . . . . . Guerrilla 1 | . . . . . . . . . . 1 . . . . . . . . . Fireman 1 | . . . . . . . . . . . . . . 1 . . . . . Best Kill Streak 10 | 2 2 5 . 3 1 . 1 5 5 8 2 1 10 3 10 . 2 5 4 Combat Bots Only 10 | . 2 5 . 3 . . 1 3 4 5 1 1 4 3 10 . 2 4 4 Max Kills in Single Turn 5 | 1 1 1 . 3 1 . 1 1 1 2 1 1 5 2 3 . 1 2 3 Gunslinging 2 | . . . . . . . . . . . . . . 1 2 . . . . Exploded 2 | . . . . 2 . . . . . . . . . . . . . . . Melee . | . . . . . . . . . . . . . . . . . . . . Uniques/NPCs Destroyed . | . . . . . . . . . . . . . . . . . . . . Combat | -11 -10 -10 -10 -9 -8 -7 -7 -6 -5 -5 -5 -5 -4 -4 -4 -4 -3 -3 -3 -------- Run | Yrd Mat Min Exi Min Mat Fac DSF Fac Fac Ext Cet Arc Fac Upp Upp Zhi Pro Res Tes Hostile Shots Fired 1404 | . 23 39 . 14 2 . 89 91 120 293 34 4 176 79 110 . 35 28 267 Missed 410 | . 7 13 . 4 . . 26 28 49 63 8 2 42 28 37 . 11 9 83 Hits 994 | . 16 26 . 10 2 . 63 63 71 230 26 2 134 51 73 . 24 19 184 Melee 45 | . . . . . . . . 2 . 6 . . 9 . 14 . . . 14 Projectile 949 | . 16 26 . 10 2 . 63 61 71 224 26 2 125 51 59 . 24 19 170 AOE 1 | . . . . . . . . . . . . . . . . . . . 1 Critical Strikes 70 | . . . . 1 1 . 1 4 2 14 4 . 14 5 8 . 2 3 11 Part Disruptions 2 | . . . . . . . . . . . . . . . . . . . 2 Damage Taken 20018 | . 195 326 . 140 69 . 1327 872 1645 4497 513 57 3169 994 1559 . 529 374 3752 Core 2770 | . 25 39 . 17 . . 201 91 200 336 53 . 122 131 184 . 71 39 1261 Absorbed by Shields 782 | . . . . . . . . . . 406 184 . . . . . . . 192 Reduced by Siege Mode 535 | . . . . . . . . . . 343 15 . 177 . . . . . . Core Remaining (%) 74 | 100 . . . 67 100 . 71 89 . . . 41 . . . . 55 . . Volleys Fired 655 | 23 19 30 . 10 10 . 25 50 84 149 21 6 90 37 31 12 18 26 14 Largest 3 | 2 2 2 . 2 2 . 2 2 2 2 2 2 3 3 3 3 3 3 2 Hottest 513 | 40 40 60 . 50 122 . 122 83 180 188 480 110 282 103 513 193 513 363 240 Shots Fired 1357 | 46 38 51 . 20 18 . 50 77 163 282 41 12 253 94 74 19 51 51 17 Gun 1098 | 46 38 42 . 10 17 . 50 76 102 144 23 12 253 94 74 19 51 35 12 Cannon 232 | . . 5 . . . . . . 58 132 18 . . . . . . 16 3 Launcher 27 | . . 4 . 10 1 . . 1 3 6 . . . . . . . . 2 Special . | . . . . . . . . . . . . . . . . . . . . Kinetic 741 | 46 38 42 . 10 5 . 14 71 2 125 18 . 178 94 52 3 19 21 3 Thermal 509 | . . 5 . . 12 . 36 2 122 141 7 . 72 . 22 16 32 30 12 Explosive 27 | . . 4 . 10 1 . . 1 3 6 . . . . . . . . 2 Electromagnetic 80 | . . . . . . . . 3 36 10 16 12 3 . . . . . . Robot Hit Streak 26 | 6 6 3 . 3 5 . 7 12 21 22 26 11 25 21 19 20 10 17 8 Robot Miss Streak 16 | 2 2 3 . 3 5 . 6 7 4 3 1 1 4 4 2 1 14 16 4 Penetration Max 2 | . . . . . . . . 1 . 1 . . 1 1 . . . 1 2 Secondary Targets 23 | . . . . . . . . 2 2 1 . . 5 4 8 . 1 . . Max Gunslinging Chain 2 | . . . . . . . . 1 1 1 . . 1 1 2 . 1 . . Shots Hit Robots 842 | 25 24 19 . 10 3 . 30 46 89 213 35 11 164 61 54 10 25 17 6 Core Hits 446 | 10 11 10 . 10 3 . 9 23 44 99 20 2 102 27 26 4 7 8 31 Critical Kills 25 | . . . . . . . . . . 5 . . 9 5 2 . . 1 3 Critical Parts Destroyed 42 | 1 . 1 . . . . . . 2 3 . . 19 6 2 . 1 . 7 Critical Strikes 75 | 1 . 1 . . . . 2 . 2 10 3 1 28 11 4 . 1 1 10 Burn 2 | . . . . . . . 2 . . . . . . . . . . . . Meltdown 1 | . . . . . . . . . . 1 . . . . . . . . . Destroy 67 | 1 . 1 . . . . . . 2 8 . . 28 11 4 . 1 1 10 Blast 4 | . . . . . . . . . . 1 3 . . . . . . . . Corrupt 1 | . . . . . . . . . . . . 1 . . . . . . . Melee Attacks . | . . . . . . . . . . . . . . . . . . . . Impact . | . . . . . . . . . . . . . . . . . . . . Slashing . | . . . . . . . . . . . . . . . . . . . . Piercing . | . . . . . . . . . . . . . . . . . . . . Sneak Attacks . | . . . . . . . . . . . . . . . . . . . . Combat Hostiles . | . . . . . . . . . . . . . . . . . . . . Follow-up Attacks . | . . . . . . . . . . . . . . . . . . . . Damage Inflicted 26409 | 341 335 223 . 595 62 . 594 1077 2643 7383 927 153 6063 1751 1535 186 905 932 704 Guns 18397 | 341 332 223 . 63 54 . 594 1077 1766 2952 423 153 5342 1751 1535 186 905 600 100 Cannons 5684 | . . . . . . . . . 555 4172 504 . . . . . . 332 121 Explosions 2201 | . . . . 502 . . . . 290 246 . . 721 . . . . . 442 Melee . | . . . . . . . . . . . . . . . . . . . . Ramming 127 | . 3 . . 30 8 . . . 32 13 . . . . . . . . 41 Kinetic 11945 | 341 332 223 . 63 14 . 134 1016 . 2458 504 . 3604 1751 956 . 229 199 121 Thermal 11021 | . . . . . 40 . 460 49 1759 4453 143 . 1843 . 579 186 676 733 100 Explosive 1924 | . . . . 502 . . . . 196 246 . . 538 . . . . . 442 Electromagnetic 1392 | . . . . . . . . 12 656 213 280 153 78 . . . . . . Impact . | . . . . . . . . . . . . . . . . . . . . Slashing . | . . . . . . . . . . . . . . . . . . . . Piercing . | . . . . . . . . . . . . . . . . . . . . Highest Corruption 45 | . . . . . . . . 5 7 3 13 45 3 4 4 4 8 . 8 Average Corruption 3 | . . . . . . . . 5 2 3 5 18 2 3 4 4 7 . 5 Corruption Purged 7 | . . . . . . . . . 7 . . . . . . . . . . Corruption Blocked . | . . . . . . . . . . . . . . . . . . . . Effects 209 | . . . . . . . . 18 12 68 23 8 13 15 27 7 17 . 1 Message Errors 39 | . . . . . . . . 2 3 10 3 2 4 3 7 2 3 . . Matter Fused 43 | . . . . . . . . 3 3 18 3 2 2 1 4 2 4 . 1 Heat Flow Errors 32 | . . . . . . . . 2 1 11 3 1 4 5 3 1 1 . . Energy Discharges 31 | . . . . . . . . 3 3 10 6 2 . 2 1 . 4 . . Parts Rejected 2 | . . . . . . . . . . 1 . . . . . . 1 . . Parts Fused 5 | . . . . . . . . . 1 1 1 . 1 1 . . . . . Data Loss (minor) 27 | . . . . . . . . 2 1 7 4 . 2 1 9 . 1 . . Data Loss (major) 12 | . . . . . . . . 3 . 4 1 1 . . 2 1 . . . Misfires 5 | . . . . . . . . 1 . 1 1 . . . . 1 1 . . Alerts 6 | . . . . . . . . 1 . 2 1 . . 1 1 . . . . Weapon Failures 7 | . . . . . . . . 1 . 3 . . . 1 . . 2 . . Overload Shots 116 | . . . . . . . . . . 76 3 . . . 4 . 2 23 8 Effects 13 | . . . . . . . . . . 8 . . . . 1 . . 4 . Energy Bleed 6 | . . . . . . . . . . 3 . . . . 1 . . 2 . Heat Surge 5 | . . . . . . . . . . 3 . . . . . . . 2 . Short Circuit 2 | . . . . . . . . . . 2 . . . . . . . . . Overflow Damage 368 | . . . . 40 16 . . . 56 176 . . 56 . . . . . 24 Projectiles 201 | . . . . . . . . . 25 176 . . . . . . . . . Explosions 167 | . . . . 40 16 . . . 31 . . . 56 . . . . . 24 Melee . | . . . . . . . . . . . . . . . . . . . . Knockbacks 1 | . . . . . . . . . . . . . . . . . . . 1 Impact 1 | . . . . . . . . . . . . . . . . . . . 1 Kinetic . | . . . . . . . . . . . . . . . . . . . . Secondary . | . . . . . . . . . . . . . . . . . . . . Self-Inflicted Damage 442 | . . 76 . 8 41 . . . 246 . . . . . . . . . 71 Shots 11 | . . 4 . 1 1 . . . 4 . . . . . . . . . 1 Rammed 14 | . 1 . . 2 1 . . 1 1 1 . . 1 . . . . . 6 Targets Rammed 24 | . 1 . . 3 2 . . 1 1 2 . . 1 . . . . . 13 Kicked 8 | . . . . . 1 . . . . . . . . . . . . . 7 Crushed 2 | . . . . 1 . . . . . 1 . . . . . . . . . Highest Temperature 381 | . 3 100 . 28 126 . . 338 161 283 319 219 270 242 352 83 381 276 90 Average Temperature 88 | . 3 42 . 11 50 . . 106 37 87 94 117 98 94 146 28 123 98 33 Received Heat Transfer 3149 | . 111 54 . 93 27 . . 66 72 690 29 . 578 372 171 . 368 176 342 Effects 14 | . . . . . . . . 3 . 2 . . 6 . 1 . 1 1 . Shutdowns 2 | . . . . . . . . 1 . . . . . . . . 1 . . Energy Bleed 4 | . . . . . . . . 2 . . . . . . 1 . . 1 . Interference 8 | . . . . . . . . . . 2 . . 6 . . . . . . Siege Activations 26 | . . . . . . . . . . 18 3 1 4 . . . . . . Total Turns 673 | . . . . . . . . . . 553 38 3 79 . . . . . . Longest Duration 154 | . . . . . . . . . . 154 20 3 32 . . . . . . Martial Activations . | . . . . . . . . . . . . . . . . . . . . Shielding Activations . | . . . . . . . . . . . . . . . . . . . . Robots Disrupted 1 | . . . . . . . . . . 1 . . . . . . . . . Combat Hostiles 1 | . . . . . . . . . . 1 . . . . . . . . . Robots Corrupted 5 | . . . . . . . . . 3 . 1 1 . . . . . . . Combat Hostiles 5 | . . . . . . . . . 3 . 1 1 . . . . . . . Parts Fried 8 | . . . . . . . . . 5 1 2 . . . . . . . . Impact Corruptions . | . . . . . . . . . . . . . . . . . . . . Robots Melted 4 | . . . . . . . . . 1 3 . . . . . . . . . Combat Hostiles 3 | . . . . . . . . . . 3 . . . . . . . . . Parts Melted 26 | . . . . . . . . . 7 15 . . 3 . . 1 . . . Heat Transferred 13002 | . . . . . 74 . 999 74 2431 4717 161 . 2222 . 766 342 581 524 111 Parts Sabotaged 5 | . . . . . . . . . . . . . . . . . . . 5 Parts Stolen . | . . . . . . . . . . . . . . . . . . . . Parts Stripped . | . . . . . . . . . . . . . . . . . . . . Power Chain Reactions 1 | . . . . . . . . . 1 . . . . . . . . . . Alert | -11 -10 -10 -10 -9 -8 -7 -7 -6 -5 -5 -5 -5 -4 -4 -4 -4 -3 -3 -3 ------- Run | Yrd Mat Min Exi Min Mat Fac DSF Fac Fac Ext Cet Arc Fac Upp Upp Zhi Pro Res Tes Maximum Alert Level 5 | . . . . . . . . . 1 3 2 2 4 . . . . 3 5 Low Security (%) 58 | 100 100 100 . 100 100 100 100 100 98 61 . . 6 . . . . . . Level 1 3 | . . . . . . . . . 1 5 . 25 13 . . . . . . Level 2 22 | . . . . . . . . . . 26 100 75 42 . . . . 19 . Level 3 12 | . . . . . . . . . . 7 . . 36 . . . . 80 . Level 4 . | . . . . . . . . . . . . . 1 . . . . . . Level 5 . | . . . . . . . . . . . . . . . . . . . . High Security . | . . . . . . . . . . . . . . . . . . . . Max Security 2 | . . . . . . . . . . . . . . . . . . . 99 Peak Influence 1963 | 10 50 100 . 122 40 5 50 107 265 1068 687 460 1302 . . . . 900 1963 Initial 900 | . . . . . 40 . . 15 44 129 596 272 140 . . . . 900 367 Average 302 | 2 7 33 . 23 4 . 20 30 40 243 553 399 623 . . . . 775 1696 Influence Increases 8651 | 50 113 196 . 259 34 5 80 342 687 1853 637 208 1874 255 505 . 80 1070 403 Destroy 0b10 Robot/C 3920 | . 80 140 . 140 . . 60 100 320 1040 300 80 780 220 420 . 60 100 80 Destroy 0b10 Robot/NC 265 | 50 10 . . 10 10 . . 20 40 55 10 . 55 . . . . 5 . Destroy Leader 638 | . 14 30 . 30 . . 20 34 66 144 20 . 170 20 40 . 20 20 10 Allied During Kill 989 | . . . . . . . . . . 337 260 80 312 . . . . . . Successful Hack 105 | . 9 . . 18 . 5 . 30 14 14 7 . 8 . . . . . . Disable Machine 540 | . . . . 15 15 . . 30 75 135 . 30 180 . . . . 15 45 Destroy Structure 754 | . . 11 . 46 9 . . 8 112 98 40 18 294 . . . . 30 88 Advance Influence 900 | . . . . . . . . . . . . . . . . . . 900 . Partial Spotted 30 | . . . . . . . . 30 . . . . . . . . . . . Lose Combat Pursuer 510 | . . 15 . . . . . 90 60 30 . . 75 15 45 . . . 180 Influence Decreases 7971 | 50 113 196 . 153 140 5 50 280 514 1052 1022 489 974 853 737 470 80 416 377 Entered New Map 2777 | . . . . . 66 . . 15 48 136 470 409 260 481 135 470 . . 287 Time Decay 4183 | 50 113 196 . 133 64 5 . 245 384 527 452 80 614 342 482 . 80 416 . Lost Part 552 | . . . . 20 10 . 50 10 82 80 40 . 20 30 120 . . . 90 Lost Ally 459 | . . . . . . . . 10 . 309 60 . 80 . . . . . . Squads Dispatched 56 | . . . . . 1 . 2 6 9 7 . . 13 . . . . 6 12 Investigation 11 | . . . . . 1 . . 1 2 2 . . 3 . . . . 2 . Extermination 8 | . . . . . . . . 3 3 . . . 2 . . . . . . Reinforcement 19 | . . . . . . . 2 2 4 2 . . 5 . . . . 4 . Assault 17 | . . . . . . . . . . 3 . . 2 . . . . . 12 Garrison 1 | . . . . . . . . . . . . . 1 . . . . . . Intercept . | . . . . . . . . . . . . . . . . . . . . Searches Triggered . | . . . . . . . . . . . . . . . . . . . . Construction Impeded 3 | . . . . . . . . . 1 1 . . 1 . . . . . . Haulers Reinforced 3 | . . . . . . . . 2 . . . . 1 . . . . . . Active Scanning Responses . | . . . . . . . . . . . . . . . . . . . . Cargo Convoy Interrupts 1 | . . . . . . . . . 1 . . . . . . . . . . Stealth | -11 -10 -10 -10 -9 -8 -7 -7 -6 -5 -5 -5 -5 -4 -4 -4 -4 -3 -3 -3 --------- Run | Yrd Mat Min Exi Min Mat Fac DSF Fac Fac Ext Cet Arc Fac Upp Upp Zhi Pro Res Tes Distress Signals 16 | . 1 . . . . . . . 1 . 2 . 7 . . . . 3 2 Communications Jammed 40 | . . . . . . . . . . 21 . . . . . . . . 19 Distress Signals 40 | . . . . . . . . . . 21 . . . . . . . . 19 Times Spotted 315 | . 8 9 . 6 7 . 4 18 25 54 13 4 53 16 24 . 10 10 54 Peak Tracking Total 34 | . 3 3 . 2 3 . 2 4 4 7 5 2 5 6 10 . 3 3 34 Tactical Retreats 18 | . . 1 . . . . . 4 3 1 . . 4 1 2 . . . 2 Traps | -11 -10 -10 -10 -9 -8 -7 -7 -6 -5 -5 -5 -5 -4 -4 -4 -4 -3 -3 -3 ------- Run | Yrd Mat Min Exi Min Mat Fac DSF Fac Fac Ext Cet Arc Fac Upp Upp Zhi Pro Res Tes Traps Triggered 8 | . . . . . . . . 3 3 1 . . . . . . . . 1 Indirectly . | . . . . . . . . . . . . . . . . . . . . Trap Hack Attempts . | . . . . . . . . . . . . . . . . . . . . Triggered . | . . . . . . . . . . . . . . . . . . . . Disarmed . | . . . . . . . . . . . . . . . . . . . . Reprogrammed . | . . . . . . . . . . . . . . . . . . . . Reused . | . . . . . . . . . . . . . . . . . . . . Traps Extracted . | . . . . . . . . . . . . . . . . . . . . Installed . | . . . . . . . . . . . . . . . . . . . . Triggered . | . . . . . . . . . . . . . . . . . . . . Machines | -11 -10 -10 -10 -9 -8 -7 -7 -6 -5 -5 -5 -5 -4 -4 -4 -4 -3 -3 -3 ---------- Run | Yrd Mat Min Exi Min Mat Fac DSF Fac Fac Ext Cet Arc Fac Upp Upp Zhi Pro Res Tes Machines Disabled 41 | . . . . 1 1 . . 2 5 11 . 2 12 . . 2 . 1 4 Max in Single Turn 3 | . . . . 1 1 . . 1 2 1 . . 3 . . 1 . 1 1 Garrison Access 2 | . . . . . . . . . 1 . . . 1 . . . . . . Machines Repaired . | . . . . . . . . . . . . . . . . . . . . Machines Dismantled . | . . . . . . . . . . . . . . . . . . . . Machines Sabotaged . | . . . . . . . . . . . . . . . . . . . . Overloaded Fab Kills . | . . . . . . . . . . . . . . . . . . . . Hacking | -11 -10 -10 -10 -9 -8 -7 -7 -6 -5 -5 -5 -5 -4 -4 -4 -4 -3 -3 -3 --------- Run | Yrd Mat Min Exi Min Mat Fac DSF Fac Fac Ext Cet Arc Fac Upp Upp Zhi Pro Res Tes Machines Accessed 50 | . 2 1 2 1 4 1 . 9 9 6 2 . 6 . . 6 1 . . Terminals 28 | . 2 . . 1 3 1 . 4 5 6 2 . 3 . . . 1 . . Fabricators 4 | . . . . . . . . 2 1 . . . 1 . . . . . . Repair Stations 2 | . . . . . . . . . 1 . . . 1 . . . . . . Recycling Units . | . . . . . . . . . . . . . . . . . . . . Scanalyzers 3 | . . . . . 1 . . 1 1 . . . . . . . . . . Garrison Access 4 | . . . . . . . . 2 1 . . . 1 . . . . . . Total Hacks 120 | . 4 1 2 8 9 1 . 20 18 8 2 . 10 . . 36 1 . . Successful 86 | . 3 1 2 5 2 1 . 12 15 1 1 . 6 . . 36 1 . . Failed 34 | . 1 . . 3 7 . . 8 3 7 1 . 4 . . . . . . Catastrophic 8 | . . . . 1 1 . . 2 1 2 . . 1 . . . . . . Database Lockouts . | . . . . . . . . . . . . . . . . . . . . Manual 41 | . 4 . 1 6 6 . . 9 8 1 1 . 5 . . . . . . Terminals 57 | . 4 . . 8 5 1 . 10 12 8 2 . 6 . . . 1 . . Fabricators 9 | . . . . . . . . 5 2 . . . 2 . . . . . . Repair Stations 2 | . . . . . . . . . 1 . . . 1 . . . . . . Recycling Units . | . . . . . . . . . . . . . . . . . . . . Scanalyzers 8 | . . . . . 4 . . 2 2 . . . . . . . . . . Garrison Access 5 | . . . . . . . . 3 1 . . . 1 . . . . . . Terminal Hacks 55 | . . 1 2 5 . 1 . . 5 1 1 . 2 . . 36 1 . . Record 34 | . . . 1 2 . . . . 3 1 1 . 1 . . 24 1 . . Part Schematic 4 | . . . . . . . . . . . . . . . . 4 . . . Robot Analysis 4 | . . . . . . . . . . . . . . . . 4 . . . Prototype ID Bank 7 | . . . . 3 . . . . . . . . . . . 4 . . . Open Door 2 | . . 1 . . . . . . 1 . . . . . . . . . . Open DSF 1 | . . . . . . 1 . . . . . . . . . . . . . Level Access Points 1 | . . . . . . . . . . . . . 1 . . . . . . Branch Access Points 1 | . . . . . . . . . 1 . . . . . . . . . . Proto ID Catalog 1 | . . . 1 . . . . . . . . . . . . . . . . Fabricator Hacks 7 | . . . . . . . . 3 2 . . . 2 . . . . . . Network Status 4 | . . . . . . . . 1 2 . . . 1 . . . . . . Build 3 | . . . . . . . . 2 . . . . 1 . . . . . . Repair Station Hacks . | . . . . . . . . . . . . . . . . . . . . Recycling Unit Hacks . | . . . . . . . . . . . . . . . . . . . . Scanalyzer 5 | . . . . . 2 . . 2 1 . . . . . . . . . . Insert Component 3 | . . . . . 1 . . 1 1 . . . . . . . . . . Analyze 2 | . . . . . 1 . . 1 . . . . . . . . . . . Garrison Access Hacks 2 | . . . . . . . . . 1 . . . 1 . . . . . . Seal Access 2 | . . . . . . . . . 1 . . . 1 . . . . . . Unauthorized Hacks 17 | . 3 . . . . . . 7 6 . . . 1 . . . . . . Terminals 16 | . 3 . . . . . . 7 5 . . . 1 . . . . . . Assimilate 3 | . 1 . . . . . . 2 . . . . . . . . . . . Botnet 7 | . 1 . . . . . . 3 2 . . . 1 . . . . . . Operators 1 | . . . . . . . . . 1 . . . . . . . . . . Skim 5 | . 1 . . . . . . 2 2 . . . . . . . . . . Fabricators . | . . . . . . . . . . . . . . . . . . . . Repair Stations 1 | . . . . . . . . . 1 . . . . . . . . . . Mechanics 1 | . . . . . . . . . 1 . . . . . . . . . . Recycling Units . | . . . . . . . . . . . . . . . . . . . . Scanalyzers . | . . . . . . . . . . . . . . . . . . . . Garrison Access . | . . . . . . . . . . . . . . . . . . . . Data Cores Recovered 1 | . . . . . 1 . . . . . . . . . . . . . . Used . | . . . . . . . . . . . . . . . . . . . . Hacking Detections 22 | . 1 . . 1 3 . . 5 7 3 . . 2 . . . . . . Full Trace Events 7 | . 1 . . . 1 . . 1 1 1 . . 2 . . . . . . Feedback Events 1 | . . . . . . . . . . . . . 1 . . . . . . Corruption 1 | . . . . . . . . . . . . . 1 . . . . . . Feedback Blocked . | . . . . . . . . . . . . . . . . . . . . Robot Schematics Acquired . | . . . . . . . . . . . . . . . . . . . . Robots Built . | . . . . . . . . . . . . . . . . . . . . Authchips . | . . . . . . . . . . . . . . . . . . . . Time . | . . . . . . . . . . . . . . . . . . . . Total Robot Build Rating . | . . . . . . . . . . . . . . . . . . . . Part Schematics Acquired 6 | . . . . . 1 . . 1 . . . . . . . 4 . . . Parts Built 3 | . . . . . . . . 3 . . . . . . . . . . . Authchips . | . . . . . . . . . . . . . . . . . . . . Time 320 | . . . . . . . . 181 . . . . 139 . . . . . . Total Part Build Rating 20 | . . . . . . . . 20 . . . . . . . . . . . Parts Repaired . | . . . . . . . . . . . . . . . . . . . . Time . | . . . . . . . . . . . . . . . . . . . . Parts Recycled . | . . . . . . . . . . . . . . . . . . . . Recycled Matter . | . . . . . . . . . . . . . . . . . . . . Retrieved Matter . | . . . . . . . . . . . . . . . . . . . . Retrieved Components . | . . . . . . . . . . . . . . . . . . . . Parts Scanalyzed 3 | . . . . . 1 . . 1 1 . . . . . . . . . . Part Schematics Acquired 2 | . . . . . 1 . . 1 . . . . . . . . . . . Parts Damaged . | . . . . . . . . . . . . . . . . . . . . Bothacking | -11 -10 -10 -10 -9 -8 -7 -7 -6 -5 -5 -5 -5 -4 -4 -4 -4 -3 -3 -3 ------------ Run | Yrd Mat Min Exi Min Mat Fac DSF Fac Fac Ext Cet Arc Fac Upp Upp Zhi Pro Res Tes Used RIF Installer . | . . . . . . . . . . . . . . . . . . . . Robots Hacked . | . . . . . . . . . . . . . . . . . . . . Non-combat . | . . . . . . . . . . . . . . . . . . . . Combat . | . . . . . . . . . . . . . . . . . . . . Robot Hacks Applied . | . . . . . . . . . . . . . . . . . . . . Relay Couplers Released 4 | . . . . . . . . . . . . . 4 . . . . . . Programmers 4 | . . . . . . . . . . . . . 4 . . . . . . Fabnet Peak Effective % . | . . . . . . . . . . . . . . . . . . . . Robots Rewired 11 | . . . . . . . . . . 11 . . . . . . . . . Allies Hacked . | . . . . . . . . . . . . . . . . . . . . Hacks Repelled . | . . . . . . . . . . . . . . . . . . . . Allies | -11 -10 -10 -10 -9 -8 -7 -7 -6 -5 -5 -5 -5 -4 -4 -4 -4 -3 -3 -3 -------- Run | Yrd Mat Min Exi Min Mat Fac DSF Fac Fac Ext Cet Arc Fac Upp Upp Zhi Pro Res Tes Total Allies 27 | . . . . . . . . 2 . 20 5 . . . . . . . . Largest Group 8 | . . . . . . . . 2 . 8 6 5 4 . . . . . . Highest-Rated Group 576 | . . . . . . . . 36 . 376 576 543 384 . . . . . . Highest-Rated Ally 159 | . . . . . . . . 26 . 159 159 159 96 . . . . . . Total Orders . | . . . . . . . . . . . . . . . . . . . . Ally Attacks 272 | . . . . . . . . . . 123 70 15 64 . . . . . . Total Damage 7370 | . . . . . . . . . . 2379 2103 867 2021 . . . . . . Kills 43 | . . . . . . . . . . 16 13 3 11 . . . . . . Allies Corrupted . | . . . . . . . . . . . . . . . . . . . . Allies Melted 1 | . . . . . . . . . . 1 . . . . . . . . . Intel | -11 -10 -10 -10 -9 -8 -7 -7 -6 -5 -5 -5 -5 -4 -4 -4 -4 -3 -3 -3 ------- Run | Yrd Mat Min Exi Min Mat Fac DSF Fac Fac Ext Cet Arc Fac Upp Upp Zhi Pro Res Tes Active Infowar (turns) 7409 | 9 901 708 548 682 . . . . . 3187 . . . . . . 50 1018 306 Seismic 2848 | 9 901 708 548 682 . . . . . . . . . . . . . . . Decoding 1373 | . . . . . . . . . . . . . . . . . 50 1018 305 Jamming 4511 | . . . . . . . . . . 3187 . . . . . . . 1018 306 Robot Analysis Total 4 | . . . . . . . . . . . . . . . . 4 . . . Derelict Logs Recovered 4 | . . 1 . . . . . . . . . . . 1 2 . . . . Drone Launches . | . . . . . . . . . . . . . . . . . . . . Drone Recoveries . | . . . . . . . . . . . . . . . . . . . . Decoded 0b10 Intel 92 | . . . . . . . . . . . . . . . . . . 69 23 Items 92 | . . . . . . . . . . . . . . . . . . 69 23 Exploration | -11 -10 -10 -10 -9 -8 -7 -7 -6 -5 -5 -5 -5 -4 -4 -4 -4 -3 -3 -3 ------------- Run | Yrd Mat Min Exi Min Mat Fac DSF Fac Fac Ext Cet Arc Fac Upp Upp Zhi Pro Res Tes Turns Passed 17715 | 316 901 708 548 751 522 132 230 1022 1390 3668 1129 176 2029 779 1256 293 531 1018 316 Spaces Moved 10257 | 157 413 387 341 370 319 107 147 1131 911 1450 569 82 914 532 905 212 380 723 207 Core 19 | 19 . . . . . . . . . . . . . . . . . . . Treads 4340 | 138 413 387 341 370 . . . . . 1450 569 82 590 . . . . . . Legs 3681 | . . . . . 234 107 57 . . . . . 324 532 905 212 380 723 207 Wheels 85 | . . . . . 85 . . . . . . . . . . . . . . Hover 2132 | . . . . . . . 90 1131 911 . . . . . . . . . . Flight . | . . . . . . . . . . . . . . . . . . . . Fastest Speed 50 | 50 160 160 160 160 95 120 56 56 56 160 152 152 120 120 120 120 120 117 100 Average Speed 126 | 146 197 160 160 166 113 120 80 56 80 160 153 152 141 123 120 120 120 118 108 Slowest Speed 240 | 160 240 160 160 240 120 120 123 110 126 160 155 152 152 125 120 120 120 120 120 Overloaded Moves . | . . . . . . . . . . . . . . . . . . . . Propulsion Burnouts . | . . . . . . . . . . . . . . . . . . . . Robots Hopped . | . . . . . . . . . . . . . . . . . . . . Potential Cave-ins 16 | . . . . . . . . . 3 . . . 6 . 1 . . 6 . Cave-ins Triggered 1 | . . . . . . . . . 1 . . . . . . . . . . Exploration Rate (%) 53 | 8 76 75 59 81 26 2 90 32 26 92 75 77 32 65 80 62 58 22 32 Regions Visited 19 Branch Regions 11 Pre-discovered Areas 4 | . . . 1 . . . . . . . . . . . . 3 . . . Known Exits Taken 6 | . . . . . . 1 . 1 1 1 . 1 . . . . 1 . . Unknown Exits Taken 12 | 1 1 1 1 1 1 . . . . . 1 . 1 1 1 1 . 1 . Scrap Searched 10 | . . 1 . 1 . . . . . . . . . 1 4 . 3 . . Spaces Dug 85 | . . . . . 9 . . . 33 4 . . 18 2 2 . . 13 4 Terrain Destroyed 511 | . . 16 . 51 9 . . 10 89 36 4 . 158 24 22 . 16 17 59 Melee . | . . . . . . . . . . . . . . . . . . . . Projectile 203 | . . . . . . . . 3 18 24 4 . 72 23 22 . 16 17 4 AOE 306 | . . 16 . 51 9 . . 7 71 12 . . 86 . . . . . 54 Terrain Rammed . | . . . . . . . . . . . . . . . . . . . . Walls Destroyed . | . . . . . . . . . . . . . . . . . . . . Machines Disabled . | . . . . . . . . . . . . . . . . . . . . Actions | -11 -10 -10 -10 -9 -8 -7 -7 -6 -5 -5 -5 -5 -4 -4 -4 -4 -3 -3 -3 --------- Run | Yrd Mat Min Exi Min Mat Fac DSF Fac Fac Ext Cet Arc Fac Upp Upp Zhi Pro Res Tes Total 13787 | 196 460 424 345 486 459 110 212 1445 1401 2512 786 120 1457 579 1013 236 415 848 283 Wait 1999 | . 12 4 . 104 97 . . 190 334 691 116 7 356 . 17 . 4 54 13 Move 10238 | 156 412 386 340 369 318 106 146 1130 910 1449 568 81 913 531 904 211 379 722 207 Hop . | . . . . . . . . . . . . . . . . . . . . Pick Up 284 | 10 11 2 2 . 12 2 22 27 25 46 28 10 37 5 21 1 3 11 9 Fast Attach 26 | 1 . . . . . . . . . . . . . . 10 4 4 5 2 Attach 125 | 6 1 . . . 8 2 6 14 13 25 10 3 14 2 11 . 1 5 4 Detach 11 | . . . . . . . . 4 1 2 . . 2 . . . . 1 1 Swap 118 | . 2 2 . . 8 . 2 5 11 21 20 8 21 2 5 2 1 7 1 Drop 169 | . 2 . 3 . 4 . 11 11 11 18 23 5 23 2 14 6 5 17 14 Fire 655 | 23 19 30 . 10 10 . 25 50 84 149 21 6 90 37 31 12 18 26 14 Melee . | . . . . . . . . . . . . . . . . . . . . Ram 9 | . . . . . 1 . . 1 1 . . . . . . . . . 6 Kick 8 | . . . . . 1 . . . . . . . . . . . . . 7 Crush 7 | . 1 . . 3 . . . . . 2 . . 1 . . . . . . Escape Stasis 29 | . . . . . . . . 13 11 . . . . . . . . . 5 Rewire 109 | . . . . . . . . . . 109 . . . . . . . . . Trap . | . . . . . . . . . . . . . . . . . . . . Miscellaneous . | . . . . . . . . . . . . . . . . . . . . Route ------- -11/Scrapyard -10/Materials (discovered 4 exits: [*Mat x2] / *Min x2) -10/Mines (discovered 3 exits: [*Mat] / *Exi / [*Sub]) -10/Exiles -9/Mines -8/Materials -7/Factory -7/DSF -6/Factory (discovered 3 exits: *Fac / [*Low x2]) -5/Factory (discovered 5 exits: *Fac / Upp x2 / *Ext x2) -5/Extension (discovered 2 exits: *Fac / *Cet) -5/Cetus (discovered 3 exits: *Fac x2 / [*Arc]) -5/Archives (discovered 3 exits: *Fac / [*Hub x2]) -4/Factory (discovered 5 exits: *Res x4 / [*Upp]) -4/Upper Caves -4/Upper Caves -4/Zhirov -3/Proximity Caves -3/Research (discovered 2 exits: Res / [*Tes]) -3/Testing History --------- Turn | Location | Event 12 | -11/Scrapyard | Discovered new exit (range 15) 317 | -11/Scrapyard | Entered Materials 329 | -10/Materials | Build established: Mutant 662 | -10/Materials | Discovered new exit (range 5) 915 | -10/Materials | Discovered new exit (range 5) 1053 | -10/Materials | Discovered new exit (range 13) 1204 | -10/Materials | Discovered new exit (range 10) 1218 | -10/Materials | Entered Mines 1528 | -10/Mines | Discovered new exit (range 11) 1538 | -10/Mines | Learned Materials stockpile data 1555 | -10/Mines | Met a Derelict who couldn't figure out how to use a Trap Extractor 1744 | -10/Mines | Received a Rocket Launcher from a helpful Derelict 1778 | -10/Mines | Deemed a non-threat by the Exiles lab entrance 1778 | -10/Mines | Discovered new exit (range 5) 1828 | -10/Mines | Excavation squad dispatched 1828 | -10/Mines | A large section of the Mines collapsed 1920 | -10/Mines | Discovered new exit (range 6) 1926 | -10/Mines | Entered Exiles 1965 | -10/Exiles | Met 8R-AWN 1994 | -10/Exiles | Met EX-HEX 2046 | -10/Exiles | Met EX-BIN 2070 | -10/Exiles | Aligned with FarCom system 2072 | -10/Exiles | Given EX-Vault access code 2109 | -10/Exiles | Opened EX-Vault 2150 | -10/Exiles | Warned to stay clear of 0b10 Research branches 2202 | -10/Exiles | Learned location of Zion (-7) 2286 | -10/Exiles | Found Lightpack 2.0 2364 | -10/Exiles | Met EX-DEC 2455 | -10/Exiles | Discovered new exit (range 14) 2474 | -10/Exiles | Left Exiles lab with Lightpack 2.0 2474 | -10/Exiles | Entered Mines 2494 | -9/Mines | Found a damaged Exp. Sensor Array with a note attached 3109 | -9/Mines | Discovered new exit (range 7) 3225 | -9/Mines | Entered Materials 3225 | -8/Materials | Evolved 4 slots: Propulsion x2, Utility x2 3537 | -8/Materials | Build established: Hauler-Mutant 3555 | -8/Materials | Discovered new exit (range 11) 3747 | -8/Materials | Entered Factory 3747 | -7/Factory | Evolved 2 slots: Utility x2 3753 | -7/Factory | Identified exit to DSF 3879 | -7/Factory | Entered DSF 3935 | -7/DSF | Additional patrols routed to DSF 4035 | -7/DSF | Lost 5 parts (3n2u) 4089 | -7/DSF | Discovered new exit (range 14) 4109 | -7/DSF | Entered Factory 4109 | -6/Factory | Evolved 2 slots: Power x1, Utility x1 4269 | -6/Factory | Fabricated Adv. Heavy Treads (x1) 4325 | -6/Factory | Discovered new exit (range 15) 4471 | -6/Factory | Fabricated Hvy. Phase Cannon (x2) 4719 | -6/Factory | Discovered new exit (range 11) 5121 | -6/Factory | Discovered new exit (range 13) 5129 | -6/Factory | Identified exit to Factory 5131 | -6/Factory | Entered another Factory area 5131 | -5/Factory | Evolved 2 slots: Utility x2 5780 | -5/Factory | Lost 3 parts (1p1n1u) 6100 | -5/Factory | Crushed by falling debris 6122 | -5/Factory | Discovered new exit (range 16) 6130 | -5/Factory | Identified exit to Factory 6219 | -5/Factory | Cargo convoy interrupted 6394 | -5/Factory | Identified exit to Upper Caves 6394 | -5/Factory | Identified exit to Extension 6521 | -5/Factory | Entered Extension 7751 | -5/Extension | Rescued a captive Derelict 7755 | -5/Extension | Rescued a captive Derelict 7793 | -5/Extension | Rescued a captive Derelict 7851 | -5/Extension | Rescued a captive Derelict 7852 | -5/Extension | Rescued a captive Derelict 8164 | -5/Extension | Spotted B-75 Beast 8173 | -5/Extension | Allies destroyed B-75 Beast 8193 | -5/Extension | Spotted B-75 Beast 8214 | -5/Extension | Destroyed B-75 Beast 8269 | -5/Extension | Lost 5 allies 8271 | -5/Extension | Disrupted transfer network 8286 | -5/Extension | Lost 4 parts (1n1u2w) 8606 | -5/Extension | Lost 3 allies 8667 | -5/Extension | Rescued a captive Derelict 8668 | -5/Extension | Rescued a captive Derelict 8679 | -5/Extension | Rescued a captive Derelict 8935 | -5/Extension | Rescued A7 9045 | -5/Extension | Discovered exit to Factory (range 10) 9047 | -5/Extension | Discovered new exit (range 6) 9056 | -5/Extension | Identified exit to Cetus 9221 | -5/Extension | First assault squad dispatched 9717 | -5/Extension | Core integrity fell below 50% 9792 | -5/Extension | Lost 4 allies 10189 | -5/Extension | Entered Cetus 10189 | -5/Cetus | Accompanied by 3 allies (A7) 10194 | -5/Cetus | Acquired a Cetus Manufacturing Module code from A7 10216 | -5/Cetus | Spotted Cetus Guard 10216 | -5/Cetus | Spotted Cetus Guard 10220 | -5/Cetus | Spotted Cetus Guard 10221 | -5/Cetus | Spotted Cetus Guard 10225 | -5/Cetus | Allies destroyed Cetus Guard 10230 | -5/Cetus | Allies destroyed Cetus Guard 10236 | -5/Cetus | Allies destroyed Cetus Guard 10239 | -5/Cetus | Allies destroyed Cetus Guard 10381 | -5/Cetus | Started Cetus Manufacturing Module 10406 | -5/Cetus | Manufactured an Enhanced Grunt 10431 | -5/Cetus | Manufactured an Enhanced Grunt 10437 | -5/Cetus | Discovered new exit (range 16) 10456 | -5/Cetus | Manufactured an Enhanced Grunt 10478 | -5/Cetus | Spotted Cetus Guard 10478 | -5/Cetus | Spotted Cetus Guard 10480 | -5/Cetus | Allies destroyed Cetus Guard 10481 | -5/Cetus | Manufactured an Enhanced Grunt 10481 | -5/Cetus | Spotted Cetus Guard 10482 | -5/Cetus | Spotted Cetus Guard 10492 | -5/Cetus | Allies destroyed Cetus Guard 10497 | -5/Cetus | Allies destroyed Cetus Guard 10502 | -5/Cetus | Destroyed Cetus Guard 10506 | -5/Cetus | Manufactured an Enhanced Grunt 10524 | -5/Cetus | Discovered exit to Factory (range 15) 10534 | -5/Cetus | Met Revision 17 10752 | -5/Cetus | Discovered exit to Factory (range 16) 10939 | -5/Cetus | Security sweep announced 11039 | -5/Cetus | System corruption reached 10% 11318 | -5/Cetus | Entered Archives 11318 | -5/Archives | Accompanied by 5 allies (A7) 11400 | -5/Archives | Discovered exit to Factory (range 16) 11419 | -5/Archives | Discovered new exit (range 16) 11434 | -5/Archives | Discovered new exit (range 13) 11486 | -5/Archives | System corruption reached 30% 11494 | -5/Archives | Entered Factory 11494 | -4/Factory | Accompanied by 4 allies 11494 | -4/Factory | Evolved 2 slots: Utility x1, Weapon x1 11627 | -4/Factory | Discovered new exit (range 10) 11775 | -4/Factory | Identified exit to Research 11795 | -4/Factory | Build established: Scavenger-Tank 12494 | -4/Factory | First assault squad dispatched 13129 | -4/Factory | Build established: Scavenger-Gunner 13470 | -4/Factory | Garrison activated, responded to threat 13504 | -4/Factory | Discovered new exit (range 11) 13523 | -4/Factory | Entered Upper Caves 13597 | -4/Upper Caves | Learned location of 1 exit from Proximity Caves 14109 | -4/Upper Caves | Ambushed by wild Derelicts 14294 | -4/Upper Caves | Discovered new exit (range 7) 14302 | -4/Upper Caves | Entered another Upper Caves area 14370 | -4/Upper Caves | Attracted the attention of an 0b10 checkpoint 14730 | -4/Upper Caves | Learned Research interactive machine intel 14999 | -4/Upper Caves | Lost 3 parts (2u1w) 15012 | -4/Upper Caves | Destroyed 10 combat bots 15090 | -4/Upper Caves | Lost 8 parts (1p1n2u4w) 15244 | -4/Upper Caves | Discovered new exit (range 8) 15246 | -4/Upper Caves | Learned location of 1 exit from Research 15247 | -4/Upper Caves | Build established: Scavenger-Mutant 15558 | -4/Upper Caves | Entered Zhirov 15558 | -4/Zhirov | Discovered new exit (range 3) 15580 | -4/Zhirov | Met Zhirov 15609 | -4/Zhirov | Learned location of Quarantine (-2) 15609 | -4/Zhirov | Learned location of Testing (-3) 15609 | -4/Zhirov | Learned location of Command (-1) 15634 | -4/Zhirov | Zhirov requested help retrieving the SGEMP Prototype 15652 | -4/Zhirov | Found Alien Artifact 15652 | -4/Zhirov | Identified Integrated Reactor 15652 | -4/Zhirov | Installed Integrated Reactor, increased core energy generation (+10) 15703 | -4/Zhirov | Build established: Scavenger-Gunner 15851 | -4/Zhirov | Entered Proximity Caves 15922 | -3/Proximity Caves | Spotter reported a threat 15971 | -3/Proximity Caves | Spotter reported a threat 15975 | -3/Proximity Caves | Spotter reported a threat 15977 | -3/Proximity Caves | Spotted B-86 Titan 16054 | -3/Proximity Caves | Destroyed B-86 Titan 16093 | -3/Proximity Caves | Spotter reported a threat 16119 | -3/Proximity Caves | Spotter reported a threat 16156 | -3/Proximity Caves | Spotter reported a threat 16172 | -3/Proximity Caves | Spotter reported a threat 16382 | -3/Proximity Caves | Entered Research 16382 | -3/Research | Evolved 2 slots: Utility x2 16383 | -3/Research | Identified exit to Research 16384 | -3/Research | Loaded intel: 43 interactive machine locations 16582 | -3/Research | Revision forces began assault on 0b10 16740 | -3/Research | Discovered new exit (range 5) 17082 | -3/Research | Research terminal network offline 17318 | -3/Research | Found Prototype Launcher 17319 | -3/Research | Identified Adv. Micro-nuke Launcher 17400 | -3/Research | Entered Testing 17401 | -3/Testing | Maximum security lockdown engaged 17421 | -3/Testing | Found Prototype Hackware 17422 | -3/Testing | Identified System Mapper 17455 | -3/Testing | Found Prototype Ballistic Cannon 17456 | -3/Testing | Identified Perforator 17494 | -3/Testing | Found Prototype Leg 17495 | -3/Testing | Identified Myomer Exoskeleton 17668 | -3/Testing | Spotted Striker 17668 | -3/Testing | Spotted Striker 17678 | -3/Testing | Spotted Alpha 7 17683 | -3/Testing | Stole the SGEMP Prototype 17707 | -3/Testing | Core integrity fell below 50% 17708 | -3/Testing | Spotted Investigator 17710 | -3/Testing | Core integrity fell below 20% 17710 | -3/Testing | Scanned by Researcher 17716 | -3/Testing | Destroyed by H-77 Assassin with High-powered Shotgun Last Messages --------------- 17712_ Striker stasis bubble strength at 192. 17712_ Slug penetrates Wall. 17712_ G-67 Veteran stasis bubble strength at 181. 17712_ Penetrated by Slug. 17713_ L-61 Swordsman stasis bubble strength at 158. 17713_ G-73 Enforcer stasis bubble strength at 177. 17713_ Stasis bubble strength at 182. 17713_ L-61 Swordsman stasis bubble strength at 179. 17714_ L-61 Swordsman stasis bubble strength at 137. 17714_ Stasis bubble strength at 176. 17714_ G-67 Veteran stasis bubble strength at 181. 17714_ Held in stasis. 17714_ Investigator is analyzing... 17715_ L-61 Swordsman stasis bubble strength at 116. 17715_ Stasis bubble strength at 170. 17715_ Penetrated by Slug. 17715_ Slug penetrates Wall. 17716_ L-61 Swordsman stasis bubble strength at 95. 17716_ H-77 Assassin suffers critical hit (Burn). 17716_ Penetrated by Slug. Map ----- +----------------------------------------------------+ | ## #?? ???????? ???????????????????????? | | "######### #?? ??????? ???????????????????????? | | ] ! #?# ????? #??????????????????????? | | ### ?????? #??????????????????????? | | [[= """ ??*??? #?###??????????????????? | | [= """ #+#+### #? ??]??????????]????? | | [= """ % [%[=! # ""???????????????????? | | """ %!%= # "????????????????????? | | ! """ "%####### " ?????????????????????? | | = # " ! # "+??????????????????????? | | ######+## """ # %#??????????????????????? | | ?????# # #""" ! =# %#??????????????????????? | | ?????# # #""" #% #?!?!??????????????????? | | ?????# # # [ !!+% #??????????????????????? | | ?????# ## #""" =# #??????????????????????? | | ????? ## #""" # #??????????????????????? | | ???? " ###""" #l #??????????????????????? | | ?# ### #?# #l #??????????????????????? | | ?#######??###?##########l #??????????????????????? | | ???????????????????????#g #??????????????????????? | | ???????????????????????#g #?????????????!????????? | | ???????????????????????#gl#??????????????????????? | | ???????########????????#lg#??????????????????????? | | ???????#""""""#????????#c #??????????????????????? | | ???????#"" """#????????#l #??????????????????????? | | ???????#"" =="#######??#h@#??????????????????????? | | ???????#" %[##p#h"####h/#??????????????????????? | | ???????#" [!/%ghg7Kg!epg#??????????????????????? | | ???????#" [%/*pgglggKg%i#??????????????????????? | | ???????#" ## ##########??????????????????????? | | ???????#""" ####???????????????????????????????? | | ???????##### #??????????????????????????????????? | | ???????????####??????????????????????????????????? | | ?????????????????????????????????????????????????? | | ?????????????????????????????????????????????????? | | ?????????????????????????????????????????????????? | | ?????????????????????????????????????????????????? | | ?????????????????????????????????????????????????? | | | | | | | | | | | | | | | | | | | | | | | | | +----------------------------------------------------+ Best States ------------- Heat Dissipation 127 Energy Generation 63 Energy Capacity 590 Matter Stores 300 Matter Capacity 300 Sight Range 16 Terrain Scan Density 10 Jamming Range 16 Armor Coverage 900 Resistance: TH 15 Phase Shifting 10 Evasion (%) 65 Targeting Accuracy 16 Core Analysis 6 Recoil Reduction 4 Particle Charging 25 Salvage Targeting 3 Offensive Hacking 30 Item Schematics ----------------- Adv. Beam Rifle | -8/Materials | Scanalyzed Arm. Leg | -6/Factory | Scanalyzed Assault Drone Bay | -4/Zhirov | Free Exp. Heat Sink | -4/Zhirov | Free Exp. Optical Array | -4/Zhirov | Free Imp. Arc Thrower | -4/Zhirov | Free Robot Schematics ------------------ None Fabricated ------------ Adv. Heavy Treads | x1 | -6/Factory | Preloaded Hvy. Phase Cannon | x2 | -6/Factory | Preloaded Repaired ---------- Nothing Alien Tech Used ----------------- Integrated Reactor Achievements -------------- None Challenges ------------ None Game ------ Seed CobblerActuatorStabilizer Manual? 0 Play Time 02:49:40 Cumulative 117.1 hours Start 2025.08.02 @ 15:13:54 End 2025.08.04 @ 12:38:35 Sessions 3 Manual Loads 0 Difficulty Rogue Special Mode None Game No. 179 Rogue 179 Adventurer 0 Explorer 0 Win Type - Total 1 Types 1/0/0/0/0/0/0/0/0/0 Lore% 68 Gallery% 59 Achievement% 51 Wizard Run 0 Options --------- Layout 0 ASCII 0 Keyboard 0 Movement Mouse Keybinds 0 Fullscreen 1 Font 16/SmallcapsGlow Map View 75x55 Zoom Use 0% Tactical HUD 1 Map Filters NONE Filters NONE Steam 1 RUN: 9b2b6bb7-79bb-413a-a2d9-a55c39227b4e